[Event "Rapid Shavuot-A 2023"]
[Site "Ramat Gan"]
[Date "2023.05.25"]
[Round "5.16"]
[White "Mordechai, Hanan"]
[Black "Shefer, Uri"]
[Result "1-0"]
[ECO "A12"]
[WhiteElo "2366"]
[BlackElo "1881"]
[Annotator "TA"]
[PlyCount "149"]
[EventDate "2023.05.19"]
[EventType "swiss"]
[EventCountry "ISR"]
[SourceTitle "playchess.com"]
[Source "ChessBase"]
[SourceQuality "1"]
[TimeControl "900+5"]

{[%evp 20,149,0,-19,-12,-14,-14,-33,-4,-6,78,50,115,60,60,60,60,58,61,67,69,64,99,60,111,117,137,141,141,133,137,147,148,147,147,147,147,147,147,147,146,108,108,0,134,132,146,146,190,137,127,127,247,254,276,268,271,271,277,214,258,258,254,165,165,165,165,165,165,165,165,158,158,158,165,165,173,120,120,120,120,120,120,120,120,110,125,125,125,110,110,110,110,0,0,0,0,0,0,0,0,0,0,0,0,0,0,0,0,0,0,0,0,0,0,0,0,0,0,0,29981,29982,29983,29984,29985,29986,29986,29987,29987,29988,29988,29989]} 1. Nf3 {[%emt 0:00:03]} Nf6 {[%emt 0:00:00]} 2. g3 {[%emt 0:00:01]} d5 {[%emt 0:00:03]} 3. Bg2 {[%emt 0:00:01]} Bf5 {[%emt 0:00:02]} 4. O-O {[%emt 0:00:03]} c6 {[%emt 0:00:01]} 5. d3 {[%emt 0:00:05]} h6 {[%emt 0:00:01]} 6. Nbd2 {[%emt 0:00:02]} e6 {[%emt 0:00:03]} 7. b3 {[%emt 0:00:02]} Be7 {[%emt 0:00:13]} 8. Bb2 {[%emt 0:00:01]} O-O {[%emt 0:00:01]} 9. c4 {[%emt 0:00:07]} Nbd7 {[%emt 0:00:09]} 10. a3 {[%emt 0:00:05]} a5 {[%emt 0:00:06]} 11. Ra2 {[%emt 0:00:09]} Re8 {[%emt 0:00:20] A12: English Opening: 1...c6 with b3 by White.} 12. Qa1 {[%emt 0:00:06]} Bf8 {[%emt 0:00:06]} 13. Re1 {[%emt 0:00:08]} Nc5 {[%emt 0:00:40] Black is slightly better.} 14. Bc3 {[%emt 0:00:29] [#]} b5 $146 {[%emt 0:00:31]} (14... Nfd7 $11) ({Predecessor:} 14... Nfd7 15. Bf1 Bg6 16. d4 Ne4 17. Nxe4 Bxe4 18. Nd2 Bg6 19. e4 dxe4 20. Nxe4 Be7 {½-½ Dhananjay,S (2139)-Muthaiah,A (2373) Hyderabad Pearl City op 2019 (5)}) 15. Nd4 {[%emt 0:01:19]} a4 {[%emt 0:02:13]} (15... b4 $14 16. Nxc6 (16. axb4 axb4 17. Bxb4 Nxd3 $14) 16... bxc3 17. Nxd8 cxd2 18. Rxd2 Raxd8) 16. bxa4 {[%emt 0:02:29]} ({Don't take} 16. cxb5 Nxb3 17. N4xb3 (17. Nxc6 Qb6 $11) 17... axb3 18. Nxb3 cxb5) (16. Nxc6 $6 Qb6 17. bxa4 bxc4 $11) (16. Nxf5 $16 exf5 17. b4) 16... bxc4 $14 {[%emt 0:00:38]} 17. Nxf5 {[%emt 0:00:25]} exf5 {[%emt 0:00:06]} 18. Bxf6 {[%emt 0:00:19]} Qxf6 {[%emt 0:00:06]} 19. Qxf6 {[%emt 0:00:04]} gxf6 {[%emt 0:00:01]} 20. dxc4 {[%emt 0:00:02]} Nxa4 {[%emt 0:00:14]} ({Weaker is} 20... Nd3 21. Rb1 Rxe2 22. Bf1 $16) 21. cxd5 {[%emt 0:01:10]} cxd5 {[%emt 0:00:27]} (21... Nc3 $14 22. Raa1 cxd5) 22. Bxd5 $16 {[%emt 0:00:48]} Nc3 {[%emt 0:00:18]} 23. Bxa8 {[%emt 0:00:03]} Nxa2 {[%emt 0:00:02]} 24. Bf3 {[%emt 0:00:59]} Nc3 {[%emt 0:01:33]} 25. Nc4 {[%emt 0:00:24]} Rc8 {[%emt 0:01:22]} 26. Nb6 {[%emt 0:00:06]} Rc7 {[%emt 0:00:10]} 27. a4 {[%emt 0:00:47]} Bb4 {[%emt 0:02:28]} 28. Ra1 {[%emt 0:00:14] Hoping for a5.} Rc5 {[%emt 0:00:11]} 29. e3 {[%emt 0:02:24]} Kg7 {[%emt 0:00:17]} 30. Nd7 {[%emt 0:00:27]} Ra5 {[%emt 0:00:45]} 31. Nb6 {[%emt 0:00:55]} Rc5 $1 {[%emt 0:00:30]} 32. Kg2 {[%emt 0:00:06]} Kg6 {[%emt 0:00:10]} 33. h4 {[%emt 0:00:21]} Ra5 {[%emt 0:00:54]} 34. Bc6 {[%emt 0:00:53]} ({White should play} 34. h5+ $18 Kg7 35. Rc1) 34... Rc5 {[%emt 0:00:41]} 35. Bd7 {[%emt 0:00:20]} Ba5 {[%emt 0:01:17]} (35... Kg7 $16 {was worth a try.} 36. a5 Rxa5 37. Rxa5 Bxa5) 36. Nc8 $18 {[%emt 0:00:04]} Bd8 {[%emt 0:00:44]} 37. Nd6 {[%emt 0:00:49]} Rd5 {[%emt 0:00:13]} 38. Bxf5+ {[%emt 0:00:12]} Kg7 {[%emt 0:00:01]} 39. Ne4 {[%emt 0:00:14]} Nxa4 {[%emt 0:00:08]} 40. Rxa4 {[%emt 0:00:06]} Rxf5 {[%emt 0:00:01][%mdl 4096] Endgame KRB-KRN} 41. Ra7 {[%emt 0:00:07] [#] And now Nd6 would win.} Rd5 {[%emt 0:00:05]} 42. Kf3 {[%emt 0:00:07]} Rf5+ {[%emt 0:00:05]} 43. Ke2 {[%emt 0:00:01] aiming for Rd7.} Rd5 {[%emt 0:00:01] Dodges Rd7} 44. Nd2 {[%emt 0:00:12]} f5 {[%emt 0:00:20]} 45. Nf3 {[%emt 0:00:05]} Bf6 {[%emt 0:00:03]} 46. Ra4 {[%emt 0:00:08]} Kg6 {[%emt 0:00:14]} 47. Nd4 {[%emt 0:00:06]} Bxd4 {[%emt 0:00:04]} 48. Rxd4 {[%emt 0:00:05] KR-KR} ({White should try} 48. exd4 $18 Rd6 49. Kd3) 48... Ra5 $16 {[%emt 0:00:01]} 49. Rd2 {[%emt 0:00:07]} Ra4 {[%emt 0:00:03]} 50. Kf3 {[%emt 0:00:01]} Rb4 {[%emt 0:00:01]} 51. Rd6+ {[%emt 0:00:03]} Kg7 {[%emt 0:00:02]} 52. h5 {[%emt 0:00:11]} Rg4 {[%emt 0:00:18]} 53. Rd4 {[%emt 0:00:11] White is more active.} Rg5 {[%emt 0:00:08]} 54. Rh4 {[%emt 0:00:02]} Kf6 {[%emt 0:00:06]} 55. Rh1 {[%emt 0:00:11]} Rg4 {[%emt 0:00:04]} 56. Rh4 {[%emt 0:00:21]} (56. Kg2 $16) 56... Rxh4 $11 {[%emt 0:00:14]} 57. gxh4 {[%emt 0:00:02] KP-KP} Ke5 {[%emt 0:00:01]} 58. Ke2 $1 {[%emt 0:00:13]} f4 {[%emt 0:00:06]} 59. Kf3 {[%emt 0:00:04]} fxe3 {[%emt 0:00:02]} 60. Kxe3 {[%emt 0:00:12] K3P-KPP} Kf5 {[%emt 0:00:14] ( -> ...Kg4)} 61. Kf3 {[%emt 0:00:02]} f6 {[%emt 0:00:03]} 62. Kg3 {[%emt 0:00:05]} Ke5 {[%emt 0:00:00]} 63. Kg4 {[%emt 0:00:07]} Ke4 {[%emt 0:00:01]} 64. f3+ {[%emt 0:00:13]} Ke5 {[%emt 0:00:08]} (64... Ke3 $5 65. Kf5 $8 Kxf3 $11) 65. Kg3 {[%emt 0:00:01]} Kf5 {[%emt 0:00:03]} (65... f5 $5) 66. Kg2 $1 {[%emt 0:00:00]} Ke5 {[%emt 0:00:03]} 67. Kf1 {[%emt 0:00:03]} Kf4 {[%emt 0:00:09]} 68. Kf2 $1 {[%emt 0:00:01]} f5 {[%emt 0:00:01]} 69. Kg2 {[%emt 0:00:03]} Ke3 $2 {[%emt 0:00:03][%mdl 8192] [#]} (69... Ke5 $11 70. Kg3 Kd5) 70. Kg3 {[%emt 0:00:01] White mates.} Ke2 {[%emt 0:00:18]} 71. Kf4 {[%emt 0:00:02]} Kf2 {[%emt 0:00:00]} 72. Kxf5 {[%emt 0:00:01]} Kxf3 {[%emt 0:00:02]} 73. Kg6 {[%emt 0:00:02]} Kf4 {[%emt 0:00:02]} 74. Kxh6 {[%emt 0:00:02]} Kf5 {[%emt 0:00:00]} 75. Kg7 {[%emt 0:00:01] Weighted Error Value: White=0.16 (very precise) /Black=0.13 (very precise)} 1-0

[Event "Rapid Shavuot-A 2023"]
[Site "Ramat Gan"]
[Date "2023.05.25"]
[Round "5.17"]
[White "Gamayev, Oleg"]
[Black "Soybert, Ori"]
[Result "1-0"]
[ECO "D02"]
[WhiteElo "2174"]
[BlackElo "1725"]
[Annotator "NA RC"]
[PlyCount "99"]
[EventDate "2023.05.19"]
[EventType "swiss"]
[EventCountry "ISR"]
[SourceTitle "playchess.com"]
[Source "ChessBase"]
[SourceQuality "1"]
[TimeControl "900+5"]

1. d4 {[%emt 0:00:03]} Nf6 {[%emt 0:00:00]} 2. Nf3 {[%emt 0:00:01]} e6 {[%emt 0:00:03]} 3. g3 {[%emt 0:00:02]} d5 {[%emt 0:00:07]} 4. Bg2 {[%emt 0:00:02]} Be7 {[%emt 0:00:04]} 5. O-O {[%emt 0:00:02]} O-O {[%emt 0:00:01]} 6. Nbd2 {[%emt 0:00:01]} a5 {[%emt 0:00:10]} 7. c3 {[%emt 0:00:06]} c5 {[%emt 0:00:18]} 8. e3 {[%emt 0:00:09]} c4 {[%emt 0:00:08]} 9. Re1 {[%emt 0:01:07]} b5 {[%emt 0:00:31]} 10. e4 {[%emt 0:00:05]} dxe4 {[%emt 0:00:05]} 11. Ne5 {[%emt 0:00:09]} Bb7 {[%emt 0:00:39]} 12. Nxe4 {[%emt 0:00:36]} Bd5 {[%emt 0:00:23]} 13. Nd2 {[%emt 0:00:29]} Bxg2 {[%emt 0:00:22]} 14. Kxg2 {[%emt 0:00:02]} Qd5+ {[%emt 0:00:54]} 15. Kg1 {[%emt 0:00:11]} Nc6 {[%emt 0:02:03]} 16. Qe2 {[%emt 0:00:07]} Nxe5 {[%emt 0:01:14]} 17. Qxe5 {[%emt 0:00:03]} Qxe5 {[%emt 0:00:24]} 18. Rxe5 {[%emt 0:00:03]} Rab8 {[%emt 0:00:09]} 19. a3 {[%emt 0:00:04]} Bd6 {[%emt 0:00:26]} 20. Re1 {[%emt 0:00:04]} Rfe8 {[%emt 0:00:16]} 21. a4 {[%emt 0:00:58]} Rec8 {[%emt 0:05:03]} 22. axb5 {[%emt 0:00:19]} Rxb5 {[%emt 0:00:01]} 23. Ra4 {[%emt 0:00:02]} Nd5 {[%emt 0:00:41]} 24. Nxc4 {[%emt 0:00:24]} Bc7 {[%emt 0:01:26]} 25. Nd2 {[%emt 0:00:10]} Rb7 {[%emt 0:00:17]} 26. Ne4 {[%emt 0:00:04]} Ra7 {[%emt 0:00:28]} 27. Kf1 {[%emt 0:00:17]} Rb8 {[%emt 0:00:16]} 28. Ke2 {[%emt 0:00:06]} Nb6 {[%emt 0:00:07]} 29. Ra2 {[%emt 0:00:02]} Nc4 {[%emt 0:00:23]} 30. Kd3 {[%emt 0:00:04]} Nd6 {[%emt 0:00:16]} 31. Nc5 {[%emt 0:00:06]} Nb7 {[%emt 0:00:13]} 32. Na4 {[%emt 0:00:21]} Nd6 {[%emt 0:00:08]} 33. Bf4 {[%emt 0:00:02]} Nb5 {[%emt 0:00:08]} 34. Bxc7 Nxc7 {[%emt 0:00:00]} 35. Kc2 {[%emt 0:00:16]} Nb5 {[%emt 0:00:07]} 36. Rea1 {[%emt 0:00:10]} Nd6 {[%emt 0:00:07]} 37. Nc5 {[%emt 0:00:08]} Rba8 {[%emt 0:00:05]} 38. Ra4 {[%emt 0:00:03]} f6 {[%emt 0:00:05]} 39. Nxe6 {[%emt 0:11:22]} Kf7 40. Nc5 {[%emt 0:00:00]} Re8 {[%emt 0:00:09]} 41. Kd3 {[%emt 0:00:00]} f5 {[%emt 0:00:05]} 42. Rxa5 {[%emt 0:00:00]} Rxa5 {[%emt 0:00:02]} 43. Rxa5 {[%emt 0:00:00]} Ne4 {[%emt 0:00:01]} 44. Ra7+ {[%emt 0:00:00]} Kf6 {[%emt 0:00:04]} 45. Nxe4+ {[%emt 0:00:00]} Rxe4 {[%emt 0:00:06]} 46. Kd2 {[%emt 0:00:00]} f4 {[%emt 0:00:05]} 47. Ra5 {[%emt 0:00:00]} f3 {[%emt 0:00:10]} 48. Re5 {[%emt 0:00:00]} Rxe5 {[%emt 0:00:09]} 49. dxe5+ Kxe5 {[%emt 0:00:01]} 50. Ke3 {[%emt 0:00:00]} 1-0

[Event "Rapid Shavuot-A 2023"]
[Site "Ramat Gan"]
[Date "2023.05.25"]
[Round "5.18"]
[White "Kereth, Oren"]
[Black "Gurevich, Neria"]
[Result "1-0"]
[ECO "C08"]
[WhiteElo "2080"]
[BlackElo "1804"]
[Annotator "NA RC"]
[PlyCount "53"]
[EventDate "2023.05.19"]
[EventType "swiss"]
[EventCountry "ISR"]
[SourceTitle "playchess.com"]
[Source "ChessBase"]
[SourceQuality "1"]
[TimeControl "900+5"]

1. e4 {[%emt 0:00:05]} c5 {[%emt 0:00:01]} 2. c3 {[%emt 0:00:08]} e6 {[%emt 0:00:12]} 3. d4 {[%emt 0:00:10]} d5 {[%emt 0:00:11]} 4. exd5 {[%emt 0:00:06]} exd5 {[%emt 0:00:01]} 5. Nf3 {[%emt 0:00:14]} Nc6 {[%emt 0:00:05]} 6. Bb5 {[%emt 0:00:05]} Nf6 {[%emt 0:00:05]} 7. O-O {[%emt 0:00:17]} Bd6 {[%emt 0:00:04]} 8. dxc5 {[%emt 0:00:05]} Bxc5 {[%emt 0:00:03]} 9. Nbd2 {[%emt 0:00:06]} O-O {[%emt 0:00:25]} 10. Nb3 {[%emt 0:00:03]} Bd6 {[%emt 0:00:02]} 11. Bg5 {[%emt 0:00:15]} Be6 {[%emt 0:00:19]} 12. h3 {[%emt 0:00:42]} h6 {[%emt 0:00:21]} 13. Be3 {[%emt 0:00:38]} a6 {[%emt 0:00:17]} 14. Bd3 {[%emt 0:00:07]} Qc7 {[%emt 0:00:41]} 15. Nbd4 {[%emt 0:00:08]} Rfd8 {[%emt 0:00:16]} 16. Qb3 {[%emt 0:01:22]} Rac8 {[%emt 0:00:39]} 17. Nxe6 {[%emt 0:01:03]} fxe6 {[%emt 0:00:04]} 18. Bb6 {[%emt 0:00:04]} Qf7 {[%emt 0:00:34]} 19. Bxd8 {[%emt 0:00:06]} Rxd8 {[%emt 0:00:01]} 20. c4 {[%emt 0:02:10]} Bb8 {[%emt 0:01:04]} 21. cxd5 {[%emt 0:00:27]} exd5 {[%emt 0:00:05]} 22. Rfe1 {[%emt 0:00:19]} Nh5 {[%emt 0:00:18]} 23. Rad1 {[%emt 0:02:41]} Nf4 {[%emt 0:00:26]} 24. Bb1 {[%emt 0:00:30]} Ba7 {[%emt 0:00:33]} 25. Rd2 {[%emt 0:04:04]} Na5 {[%emt 0:00:30]} 26. Qc3 {[%emt 0:00:27]} Nc4 {[%emt 0:00:05]} 27. Qxc4 {[%emt 0:00:12]} 1-0

[Event "Rapid Shavuot-A 2023"]
[Site "Ramat Gan"]
[Date "2023.05.25"]
[Round "6.1"]
[White "Aizenberg, Benny"]
[Black "Veinberg, Nimrod"]
[Result "1/2-1/2"]
[ECO "C45"]
[WhiteElo "2403"]
[BlackElo "2410"]
[Annotator "TA"]
[PlyCount "71"]
[EventDate "2023.05.19"]
[EventType "swiss"]
[EventCountry "ISR"]
[SourceTitle "playchess.com"]
[Source "ChessBase"]
[SourceQuality "1"]
[TimeControl "900+5"]

{[%evp 12,71,0,0,29,-3,20,0,54,-14,-4,-8,20,11,39,31,35,45,45,40,22,0,0,0,0,-36,-44,-52,-56,-72,-67,-78,-42,-50,-55,-127,-127,-127,-129,-126,0,0,0,0,0,-8,-8,-24,-30,-19,-8,0,0,0,0,0,0,0,0,0,0,0]} 1. e4 {[%emt 0:00:01]} e5 {[%emt 0:00:01]} 2. Nf3 {[%emt 0:00:03]} Nc6 {[%emt 0:00:00]} 3. d4 {[%emt 0:00:02]} exd4 {[%emt 0:00:03]} 4. Nxd4 {[%emt 0:00:01]} Bc5 {[%emt 0:00:17]} 5. Nb3 {[%emt 0:00:02]} Bb6 {[%emt 0:00:01]} 6. Nc3 {[%emt 0:00:03]} Nf6 {[%emt 0:00:02]} 7. Bg5 {[%emt 0:00:05]} a5 {[%emt 0:00:05] C45: Scotch Game.} 8. a4 {[%emt 0:00:01]} d6 {[%emt 0:00:23]} 9. Qe2 {[%emt 0:00:32]} Nd4 {[%emt 0:00:15]} (9... h6 $11 10. Be3 Bxe3 11. Qxe3 O-O) 10. Qd2 {[%emt 0:00:13]} (10. Nxd4 $14 Bxd4 11. Qd2 Bxc3 12. Qxc3) 10... Nxb3 $11 {[%emt 0:00:05]} 11. cxb3 {[%emt 0:00:01] [#]} h6 $146 {[%emt 0:00:16]} ({Predecessor:} 11... Be6 12. Bc4 h6 13. Be3 Bxe3 14. Qxe3 O-O 15. O-O Qe7 16. Rfe1 Rfe8 17. f3 b6 {1-0 Krysa,L (2532)-Jeet,J (2279) Titled Tuesday intern op 17th Aug blitz 2021 (4)}) 12. Bxf6 {[%emt 0:00:30]} Qxf6 {[%emt 0:00:18]} 13. Nd5 {[%emt 0:00:02]} Qe5 {[%emt 0:02:40]} 14. Bb5+ {[%emt 0:00:24]} Bd7 {[%emt 0:00:40]} 15. Bxd7+ {[%emt 0:00:16]} (15. Nxb6 {simplifies} cxb6 16. Bxd7+ Kxd7 17. O-O) 15... Kxd7 {[%emt 0:00:01]} 16. O-O {[%emt 0:00:03]} (16. Nxb6+ {simplifies} cxb6 17. O-O Rhc8 18. Rfe1) 16... Bc5 {[%emt 0:00:24]} ({But not} 16... Qxe4 17. Rad1 Ra6 18. Rfe1 $16) 17. Rac1 {[%emt 0:00:04]} c6 {[%emt 0:00:43]} 18. Rxc5 {[%emt 0:00:34]} dxc5 {[%emt 0:00:02]} 19. Nb6+ {[%emt 0:00:10]} Kc7 {[%emt 0:00:07]} 20. Nxa8+ {[%emt 0:00:30]} Rxa8 $15 {[%emt 0:00:01][%mdl 4096] Endgame KQR-KQR} 21. Re1 {[%emt 0:00:03]} g5 {[%emt 0:00:34]} 22. h3 {[%emt 0:00:43]} Qd4 {[%emt 0:00:23]} 23. Qe2 {[%emt 0:12:37]} (23. Rd1 $1 $15) 23... Rd8 $17 {[%emt 0:00:42]} 24. Qh5 {[%emt 0:00:00]} Qf6 {[%emt 0:00:19]} 25. e5 {[%emt 0:00:00]} Qf5 {[%emt 0:00:57]} (25... Qe6 $17 26. Qf3 Kb6) 26. Qxh6 $11 {[%emt 0:00:00]} Rd2 {[%emt 0:00:05]} 27. Qf6 $36 {[%emt 0:00:00][%mdl 2048] White is pushing.} Rxf2 {[%emt 0:00:29]} 28. Qxf5 {[%emt 0:00:00]} Rxf5 {[%emt 0:00:01][%cal Bf2f5,Bf5d5,Bd5d2][%mdl 32] KR-KR} 29. e6 {[%emt 0:00:00]} fxe6 {[%emt 0:00:19]} 30. Rxe6 {[%emt 0:00:00]} Rd5 {[%emt 0:01:36] The position is equal.} 31. Kf2 {[%emt 0:00:00]} Rd2+ {[%emt 0:01:10]} 32. Re2 {[%emt 0:00:00]} Rd3 {[%emt 0:00:01]} 33. Re3 {[%emt 0:00:00]} Rd2+ {[%emt 0:00:00]} 34. Re2 {[%emt 0:00:00]} Rd3 {[%emt 0:00:01]} 35. Re3 {[%emt 0:00:00]} Rd2+ {[%emt 0:00:01]} 36. Re2 {[%emt 0:00:00] Weighted Error Value: White=0.12 (very precise) /Black=0.15 (very precise)} 1/2-1/2

[Event "Rapid Shavuot-A 2023"]
[Site "Ramat Gan"]
[Date "2023.05.25"]
[Round "6.2"]
[White "Zemach, Roee"]
[Black "Mindlin, Alon"]
[Result "1/2-1/2"]
[ECO "A45"]
[WhiteElo "2261"]
[BlackElo "2435"]
[Annotator "TA"]
[PlyCount "104"]
[EventDate "2023.05.19"]
[EventType "swiss"]
[EventCountry "ISR"]
[SourceTitle "playchess.com"]
[Source "ChessBase"]
[SourceQuality "1"]
[TimeControl "900+5"]

{[%evp 9,104,15,18,-11,16,15,15,16,12,13,14,12,12,17,17,15,18,11,15,12,16,10,20,12,28,25,23,24,24,23,23,23,24,29,31,0,31,23,23,27,32,31,50,42,43,28,23,19,22,20,21,21,33,26,31,15,21,0,0,0,0,0,0,0,0,0,0,0,0,0,0,0,0,0,0,0,0,0,0,0,0,0,0,0,0,0,0,0,0,0,0,0,0,0,0,0,0]} 1. d4 {[%emt 0:00:02]} Nf6 {[%emt 0:00:02]} 2. Bg5 {[%emt 0:00:04]} Ne4 {[%emt 0:00:06]} 3. Bf4 {[%emt 0:00:06]} d5 {[%emt 0:00:02]} 4. e3 {[%emt 0:00:03]} Bf5 {[%emt 0:00:02]} 5. Bd3 {[%emt 0:00:43]} e6 {[%emt 0:00:02]} 6. Ne2 {[%emt 0:02:44] A45: Trompowsky Attack.} Bd6 {[%emt 0:00:39]} (6... g5 $5 {[%cal Rg5f4]} 7. Bg3 Nc6 $11) 7. Nd2 {[%emt 0:00:30]} Nxd2 {[%emt 0:01:25]} 8. Qxd2 {[%emt 0:00:02]} Bxd3 {[%emt 0:00:03]} 9. Qxd3 {[%emt 0:00:02]} O-O {[%emt 0:00:14]} 10. O-O {[%emt 0:00:17] [#]} Nd7 $146 {[%emt 0:00:10]} ({Predecessor:} 10... Nc6 11. c4 Nb4 12. Qb3 dxc4 13. Qxc4 Nd5 14. Bxd6 cxd6 15. Rac1 Qd7 16. Qb3 a5 {½-½ Turner,M (2509)-Jones,G (2670) Caplin Hastings Online rapid 2021 (10)}) 11. c4 {[%emt 0:00:18]} Bxf4 {[%emt 0:00:46]} 12. Nxf4 {[%emt 0:00:02]} c6 {[%emt 0:00:01]} 13. Rac1 {[%emt 0:01:08]} Qb6 {[%emt 0:00:52]} 14. Qa3 {[%emt 0:00:27]} Rfd8 {[%emt 0:00:47]} 15. Nd3 {[%emt 0:00:16]} a5 {[%emt 0:02:12]} 16. Rc2 {[%emt 0:00:46]} dxc4 {[%emt 0:01:27]} 17. Rxc4 {[%emt 0:00:02]} Qb5 {[%emt 0:00:00]} 18. Qc3 {[%emt 0:00:22]} Qd5 {[%emt 0:00:05]} 19. b3 {[%emt 0:00:46]} h6 {[%emt 0:00:51]} 20. h3 {[%emt 0:00:10]} Ra6 {[%emt 0:00:52]} 21. Nc5 {[%emt 0:00:17]} Ra7 {[%emt 0:00:18]} 22. Nd3 {[%emt 0:00:52]} Rda8 {[%emt 0:00:52]} (22... Ra6 $5 {[%cal Rb7b5]}) 23. a3 {[%emt 0:00:27]} Qd6 {[%emt 0:00:19]} 24. Qb2 {[%emt 0:00:24]} Ra6 {[%emt 0:00:49]} 25. Rfc1 {[%emt 0:00:27]} Rb6 {[%emt 0:00:04]} 26. Nc5 {[%emt 0:00:15]} Rb5 {[%emt 0:00:20]} 27. Nxd7 {[%emt 0:00:56]} Qxd7 {[%emt 0:00:01]} 28. Rc5 {[%emt 0:00:04]} Rxc5 {[%emt 0:00:40]} 29. Rxc5 $11 {[%emt 0:00:02][%mdl 4096] Endgame KQR-KQR} b6 {[%emt 0:00:02]} 30. Rc4 {[%emt 0:00:07]} Qd6 {[%emt 0:00:34]} 31. Qc1 {[%emt 0:00:05]} Rc8 {[%emt 0:00:01]} 32. b4 {[%emt 0:00:12]} axb4 {[%emt 0:00:03] The position is equal.} 33. axb4 {[%emt 0:00:02]} Qd5 {[%emt 0:00:18]} 34. Qc2 {[%emt 0:00:30]} g6 {[%emt 0:00:30]} 35. Rc3 {[%emt 0:00:20]} Qb5 {[%emt 0:00:19]} 36. Qb3 {[%emt 0:00:39]} Ra8 {[%emt 0:00:19]} 37. Qc4 {[%emt 0:00:09]} Qxc4 {[%emt 0:00:17]} 38. Rxc4 {[%emt 0:00:02] KR-KR} Ra1+ {[%emt 0:00:08]} 39. Kh2 {[%emt 0:00:04]} Rb1 {[%emt 0:00:08]} 40. Kg3 {[%emt 0:00:09]} b5 {[%emt 0:00:06]} 41. Rxc6 {[%emt 0:00:02]} Rxb4 {[%emt 0:00:02]} 42. Rc2 {[%emt 0:00:50]} Rb1 {[%emt 0:00:05]} 43. Kf4 {[%emt 0:00:12]} b4 {[%emt 0:00:07]} 44. Rc8+ {[%emt 0:00:18]} Kg7 {[%emt 0:00:01]} 45. Rb8 {[%emt 0:00:01]} Rb2 {[%emt 0:00:19]} 46. Kf3 {[%emt 0:00:19]} b3 {[%emt 0:00:03]} 47. e4 {[%emt 0:00:03]} Rb1 {[%emt 0:00:06]} 48. Rb6 {[%emt 0:00:35]} g5 {[%emt 0:00:17]} 49. d5 {[%emt 0:00:10]} exd5 {[%emt 0:00:02]} 50. exd5 {[%emt 0:00:01]} b2 {[%emt 0:00:13]} 51. g3 {[%emt 0:00:05]} Rd1 {[%emt 0:00:02]} 52. Rxb2 {[%emt 0:00:03] Hoping for Ke4.} Rxd5 {Weighted Error Value: White=0.04 (flawless) /Black=0.03 (flawless)} 1/2-1/2

[Event "Rapid Shavuot-A 2023"]
[Site "Ramat Gan"]
[Date "2023.05.25"]
[Round "6.3"]
[White "Rozen, Eytan"]
[Black "Parkhov, Yair"]
[Result "1/2-1/2"]
[ECO "B09"]
[WhiteElo "2417"]
[BlackElo "2505"]
[Annotator "TA"]
[PlyCount "59"]
[EventDate "2023.05.19"]
[EventType "swiss"]
[EventCountry "ISR"]
[SourceTitle "playchess.com"]
[Source "ChessBase"]
[SourceQuality "1"]
[TimeControl "900+5"]

{[%evp 17,59,0,0,0,0,0,0,0,0,0,0,0,0,0,574,0,0,-109,-82,-127,-127,-128,-126,-153,-156,-265,-200,-189,-186,-168,-39,-40,-47,-47,-49,-45,0,0,0,0,0,0,0,0]} 1. e4 {[%emt 0:00:03]} d6 {[%emt 0:00:01]} 2. d4 {[%emt 0:00:07]} Nf6 {[%emt 0:00:01]} 3. Nc3 {[%emt 0:00:01]} g6 {[%emt 0:00:01]} 4. f4 {[%emt 0:00:15]} Bg7 {[%emt 0:00:02]} 5. Nf3 {[%emt 0:00:01]} O-O {[%emt 0:00:03]} 6. e5 {[%emt 0:00:01]} dxe5 {[%emt 0:00:04]} 7. fxe5 {[%emt 0:00:01]} Nd5 {[%emt 0:00:01]} 8. Bc4 {[%emt 0:00:02]} Nxc3 {[%emt 0:00:02]} 9. bxc3 {[%emt 0:00:02]} c5 {[%emt 0:00:06]} 10. O-O {[%emt 0:00:02] B09: Pirc Defence: Austrian Attack.} (10. dxc5 Qa5 11. O-O Qxc3 $15) 10... Bg4 $1 {[%emt 0:00:06] 10...Bg4 scores better than 10...Nc6.} 11. Qd3 {[%emt 0:00:12] Strongly threatening Rb1.} (11. dxc5 Qc7 $15) 11... Nc6 {[%emt 0:00:27] And now ...cxd4 would win.} 12. Ng5 {[%emt 0:00:07][%cal Rf1f7]} (12. dxc5 Bxf3 13. gxf3 Nxe5 14. Qxd8 Raxd8 $17) 12... e6 $1 {[%emt 0:00:03][%cal Rc5d4]} 13. Qg3 $1 {[%emt 0:00:33]} (13. dxc5 Nxe5 14. Qg3 Qc8 $19) 13... Bf5 {[%emt 0:00:02]} 14. Rxf5 {[%emt 0:00:11]} exf5 {[%emt 0:00:35]} (14... gxf5 15. Ne4 Kh8 16. Bg5 $11 (16. Nxc5 Nxd4 17. Bg5 Nf3+ 18. gxf3 Qc7 $17)) 15. e6 $1 {[%emt 0:00:06][%cal Re6f7] [#]} Nxd4 $5 $146 {[%emt 0:06:22][%mdl 8] An interesting novelty.} ({Predecessor:} 15... Bxd4+ 16. Kf1 Be5 17. Bf4 Qd6 18. Nxf7 Rxf7 19. exf7+ Kg7 20. Bxe5+ Nxe5 21. Re1 Nxf7 22. Qxd6 Nxd6 {0-1 Smirnov,P (2544)-Onischuk,V (2633) Titled Tuesday intern op 29th Sept blitz 2020 (6)}) 16. Nxf7 $2 {[%emt 0:02:08]} (16. exf7+ $18 Kh8 17. Nxh7 (17. cxd4 $2 {perishes.} Qxd4+ 18. Be3 Qxa1+ $19)) 16... Qe7 $11 {[%emt 0:01:43][%cal Ob7b5] aiming for ...b5!} 17. cxd4 {[%emt 0:06:51]} (17. Nh6+ $11 Kh8 18. Bg5) 17... Bxd4+ $17 {[%emt 0:00:03]} 18. Kh1 {[%emt 0:00:17]} Bxa1 {[%emt 0:00:10]} 19. c3 {[%emt 0:00:02] White wants to mate with Qe5.} Qf6 {[%emt 0:02:20]} 20. Bd2 {[%emt 0:03:01] [#] This pair of bishops is nice.} f4 $1 {[%emt 0:01:42]} 21. Qf3 {[%emt 0:00:10]} (21. Qe1 $17 {was the only defense.}) 21... Rxf7 {[%emt 0:00:46]} 22. exf7+ {[%emt 0:00:04]} Kg7 {[%emt 0:00:01] ...Rd8 is the strong threat.} 23. Bxf4 {[%emt 0:00:39][%cal Of4h6] [#] Bh6+! would kill now.} Qxc3 {[%emt 0:00:54]} (23... g5 $1 $19 24. Bc7 (24. Qxb7 $2 {is the wrong capture.} Rd8 $19) 24... Bxc3 25. Qxf6+ Bxf6) 24. Bh6+ {[%emt 0:00:31][%mdl 64] Decoy} Kxh6 {[%emt 0:00:01]} 25. f8=B+ {[%emt 0:00:09] [#]} Rxf8 $1 {[%emt 0:00:03]} 26. Qxf8+ {[%emt 0:00:00]} Kg5 {[%emt 0:00:13]} (26... Qg7 $5 {[%cal Rg7f8]} 27. Qf4+ g5 28. Qd6+ Qg6 29. Qxc5 Qb1+ 30. Qg1 Qxg1+ 31. Kxg1 Bd4+ 32. Kf1 Kh5 $15) 27. Qe7+ {[%emt 0:00:15] The position is equal.} Kh6 {[%emt 0:00:37]} 28. Qh4+ {[%emt 0:00:11]} Kg7 {[%emt 0:00:01]} 29. Qe7+ {[%emt 0:00:02]} Kh6 {[%emt 0:00:01] ( -> ...Qc1+)} 30. Qh4+ {[%emt 0:00:14] An interesting game.   Weighted Error Value: White=0.36/Black=0.35} 1/2-1/2